[Event "Betsys MČR v online bleskovém šachu 2021"]
[Site "Chess.com"]
[Date "2021.04.17"]
[Round "13"]
[White "pepca"]
[Black "masodj"]
[Result "1-0"]
[WhiteElo "1561"]
[BlackElo "1708"]
[TimeControl "180+1"]
[EndTime "11:07:50 PDT"]
[Termination "Uživatel pepca zvítězil po vzdání soupeře"]

1. e4 {[%clk 0:03:00.9]} 1... c5 {[%clk 0:02:59.5]} 2. Nc3 {[%clk 0:02:59.5]}
2... g6 {[%clk 0:02:59]} 3. g3 {[%clk 0:02:58.2]} 3... Bg7 {[%clk 0:02:58.8]} 4.
Bg2 {[%clk 0:02:57.4]} 4... Nc6 {[%clk 0:02:58.5]} 5. f4 {[%clk 0:02:57.5]} 5...
d6 {[%clk 0:02:53]} 6. Nf3 {[%clk 0:02:58.4]} 6... Nf6 {[%clk 0:02:50.4]} 7. d3
{[%clk 0:02:58.5]} 7... O-O {[%clk 0:02:50.1]} 8. O-O {[%clk 0:02:58.8]} 8... a6
{[%clk 0:02:47.2]} 9. h3 {[%clk 0:02:59]} 9... b5 {[%clk 0:02:47.1]} 10. Be3
{[%clk 0:02:58.7]} 10... b4 {[%clk 0:02:43.7]} 11. Ne2 {[%clk 0:02:56.7]} 11...
a5 {[%clk 0:02:39.7]} 12. g4 {[%clk 0:02:55.1]} 12... a4 {[%clk 0:02:36.4]} 13.
Ng3 {[%clk 0:02:53.5]} 13... a3 {[%clk 0:02:31.3]} 14. b3 {[%clk 0:02:45.9]}
14... d5 {[%clk 0:02:14.2]} 15. e5 {[%clk 0:02:37.6]} 15... Nd7 {[%clk 0:02:10]}
16. Rc1 {[%clk 0:02:26.6]} 16... d4 {[%clk 0:02:08.6]} 17. Bd2 {[%clk 0:02:18]}
17... Nb6 {[%clk 0:02:04.6]} 18. Ne4 {[%clk 0:02:12.2]} 18... Bb7 {[%clk
0:02:00.8]} 19. Nxc5 {[%clk 0:02:10.7]} 19... Qc7 {[%clk 0:01:48.1]} 20. Nxb7
{[%clk 0:02:08.1]} 20... Qxb7 {[%clk 0:01:48.2]} 21. Nxd4 {[%clk 0:02:07.2]}
21... Rac8 {[%clk 0:01:30.4]} 22. Qf3 {[%clk 0:02:04.6]} 22... Qa8 {[%clk
0:01:14.1]} 23. Nxc6 {[%clk 0:02:01.5]} 1-0

[Event "Betsys MČR v online bleskovém šachu 2021"]
[Site "Chess.com"]
[Date "2021.04.17"]
[Round "13"]
[White "Dan1612"]
[Black "martin1804"]
[Result "0-1"]
[WhiteElo "1961"]
[BlackElo "2214"]
[TimeControl "180+1"]
[EndTime "11:07:52 PDT"]
[Termination "Uživatel martin1804 zvítězil matem"]

1. e4 {[%clk 0:03:00.9]} 1... d6 {[%clk 0:02:59.7]} 2. d4 {[%clk 0:03:00.4]}
2... Nf6 {[%clk 0:02:59.7]} 3. Nc3 {[%clk 0:03:00.8]} 3... e5 {[%clk 0:02:59.9]}
4. dxe5 {[%clk 0:02:59.4]} 4... dxe5 {[%clk 0:03:00.8]} 5. Qxd8+ {[%clk
0:02:59.9]} 5... Kxd8 {[%clk 0:03:01.5]} 6. Bg5 {[%clk 0:03:00.6]} 6... Be6
{[%clk 0:03:00.9]} 7. Nf3 {[%clk 0:02:59.9]} 7... Nd7 {[%clk 0:03:00.4]} 8.
O-O-O {[%clk 0:02:59.4]} 8... Kc8 {[%clk 0:03:00.6]} 9. Bb5 {[%clk 0:02:56.9]}
9... c6 {[%clk 0:03:00.6]} 10. Be2 {[%clk 0:02:54.3]} 10... Bc5 {[%clk
0:02:53.4]} 11. Rhf1 {[%clk 0:02:45.5]} 11... b5 {[%clk 0:02:53.3]} 12. a3
{[%clk 0:02:42.5]} 12... a5 {[%clk 0:02:52.8]} 13. Nd2 {[%clk 0:02:34]} 13... h6
{[%clk 0:02:45.2]} 14. Bh4 {[%clk 0:02:28.3]} 14... g5 {[%clk 0:02:43.8]} 15.
Bg3 {[%clk 0:02:28.9]} 15... Bd4 {[%clk 0:02:18.5]} 16. Nf3 {[%clk 0:02:09.7]}
16... Bxc3 {[%clk 0:02:16.2]} 17. bxc3 {[%clk 0:02:10.2]} 17... Nxe4 {[%clk
0:02:11.1]} 18. Nxe5 {[%clk 0:02:10.5]} 18... Nxg3 {[%clk 0:01:54.9]} 19. Nxd7
{[%clk 0:02:08]} 19... Nxe2+ {[%clk 0:01:54.3]} 20. Kd2 {[%clk 0:01:54.4]} 20...
Bxd7 {[%clk 0:01:52.1]} 21. Kxe2 {[%clk 0:01:55.3]} 21... Re8+ {[%clk
0:01:51.5]} 22. Kd2 {[%clk 0:01:54]} 22... Kc7 {[%clk 0:01:48.4]} 23. Kc1 {[%clk
0:01:53.7]} 23... Rad8 {[%clk 0:01:48.1]} 24. Kb2 {[%clk 0:01:50.3]} 24... Bf5
{[%clk 0:01:47.9]} 25. Rc1 {[%clk 0:01:50.1]} 25... Rd2 {[%clk 0:01:47.6]} 26.
Rcd1 {[%clk 0:01:41.8]} 26... Rxc2+ {[%clk 0:01:47.1]} 27. Kb3 {[%clk
0:01:41.2]} 27... a4+ {[%clk 0:01:43.9]} 28. Kb4 {[%clk 0:01:41.7]} 28... Kb6
{[%clk 0:01:44.6]} 29. c4 {[%clk 0:01:37.9]} 29... c5# {[%clk 0:01:43.4]} 0-1

[Event "Betsys MČR v online bleskovém šachu 2021"]
[Site "Chess.com"]
[Date "2021.04.17"]
[Round "13"]
[White "DominikS3"]
[Black "MatejKopecky13"]
[Result "0-1"]
[WhiteElo "1338"]
[BlackElo "1502"]
[TimeControl "180+1"]
[EndTime "11:07:53 PDT"]
[Termination "Uživatel MatejKopecky13 zvítězil po vzdání soupeře"]

1. d4 {[%clk 0:03:00.9]} 1... e6 {[%clk 0:03:00.3]} 2. c4 {[%clk 0:02:59.9]}
2... Nf6 {[%clk 0:03:00.5]} 3. Nc3 {[%clk 0:02:59.4]} 3... Bb4 {[%clk
0:02:57.9]} 4. Bg5 {[%clk 0:02:57.5]} 4... h6 {[%clk 0:02:58.1]} 5. Bh4 {[%clk
0:02:56.3]} 5... g5 {[%clk 0:02:56.5]} 6. Bg3 {[%clk 0:02:55.3]} 6... Ne4 {[%clk
0:02:56.7]} 7. Qc2 {[%clk 0:02:52.8]} 7... f5 {[%clk 0:02:54.9]} 8. e3 {[%clk
0:02:49.6]} 8... Nc6 {[%clk 0:02:52.4]} 9. Bd3 {[%clk 0:02:47.1]} 9... d5 {[%clk
0:02:48.6]} 10. cxd5 {[%clk 0:02:45.8]} 10... exd5 {[%clk 0:02:49.5]} 11. a3
{[%clk 0:02:40.2]} 11... Bxc3+ {[%clk 0:02:43.6]} 12. bxc3 {[%clk 0:02:38.3]}
12... Qf6 {[%clk 0:02:43.3]} 13. Bb5 {[%clk 0:02:32.6]} 13... f4 {[%clk
0:02:38.3]} 14. exf4 {[%clk 0:02:30.5]} 14... gxf4 {[%clk 0:02:37.9]} 15. Bxc6+
{[%clk 0:02:30.2]} 15... bxc6 {[%clk 0:02:37.8]} 16. f3 {[%clk 0:02:14.4]} 16...
Nxg3 {[%clk 0:02:24.9]} 17. hxg3 {[%clk 0:02:10.9]} 17... fxg3 {[%clk
0:02:25.8]} 18. Ne2 {[%clk 0:02:07.1]} 18... Bf5 {[%clk 0:02:25]} 19. Qd2 {[%clk
0:02:00.8]} 19... Kd7 {[%clk 0:02:15.6]} 20. Nxg3 {[%clk 0:01:58.7]} 20... Rae8+
{[%clk 0:02:14.5]} 21. Kd1 {[%clk 0:01:53.7]} 21... Be6 {[%clk 0:02:00.4]} 22.
Kc2 {[%clk 0:01:47.6]} 22... Qg6+ {[%clk 0:01:54.4]} 23. Qd3 {[%clk 0:01:36]}
23... Qxg3 {[%clk 0:01:50.3]} 24. Rhg1 {[%clk 0:01:34.7]} 24... Rhf8 {[%clk
0:01:49.1]} 25. Rae1 {[%clk 0:01:31.6]} 25... Bf5 {[%clk 0:01:48.3]} 0-1

[Event "Betsys MČR v online bleskovém šachu 2021"]
[Site "Chess.com"]
[Date "2021.04.17"]
[Round "13"]
[White "LightningAttack_2000"]
[Black "marosino"]
[Result "1/2-1/2"]
[WhiteElo "1862"]
[BlackElo "1597"]
[TimeControl "180+1"]
[EndTime "11:07:56 PDT"]
[Termination "Remíza opakováním pozice"]

1. e4 {[%clk 0:03:00.7]} 1... d5 {[%clk 0:02:42.5]} 2. exd5 {[%clk 0:02:58.8]}
2... Nf6 {[%clk 0:02:42.1]} 3. d4 {[%clk 0:02:58]} 3... Bg4 {[%clk 0:02:41.3]}
4. f3 {[%clk 0:02:57]} 4... Bf5 {[%clk 0:02:41.4]} 5. c4 {[%clk 0:02:54.8]} 5...
e6 {[%clk 0:02:41.2]} 6. dxe6 {[%clk 0:02:51.8]} 6... Nc6 {[%clk 0:02:40.3]} 7.
exf7+ {[%clk 0:02:48.7]} 7... Kxf7 {[%clk 0:02:39.9]} 8. d5 {[%clk 0:02:48.7]}
8... Nb4 {[%clk 0:02:37.6]} 9. Na3 {[%clk 0:02:47.6]} 9... Bc5 {[%clk
0:02:32.7]} 10. Ne2 {[%clk 0:02:42.3]} 10... Re8 {[%clk 0:02:30.8]} 11. Qb3
{[%clk 0:02:28.1]} 11... Nd3+ {[%clk 0:02:28.7]} 12. Kd1 {[%clk 0:02:27.9]}
12... Nf2+ {[%clk 0:02:26]} 13. Ke1 {[%clk 0:02:27.9]} 13... Nxh1 {[%clk
0:02:21.9]} 14. Bf4 {[%clk 0:02:26.6]} 14... Nf2 {[%clk 0:02:17.9]} 15. Qxb7
{[%clk 0:02:26.1]} 15... Nd3+ {[%clk 0:02:15.6]} 16. Kd2 {[%clk 0:02:23.3]}
16... Bb4+ {[%clk 0:02:02.8]} 17. Kd1 {[%clk 0:02:19.2]} 17... Nxb2+ {[%clk
0:01:53.4]} 18. Kc1 {[%clk 0:02:16.5]} 18... Nd3+ {[%clk 0:01:51.3]} 19. Kd1
{[%clk 0:02:16.4]} 19... Bxa3 {[%clk 0:01:42.7]} 20. Bxc7 {[%clk 0:02:13.5]}
20... Nb2+ {[%clk 0:01:34.3]} 21. Ke1 {[%clk 0:02:11.2]} 21... Qe7 {[%clk
0:01:26.1]} 22. d6 {[%clk 0:02:08.3]} 22... Nd3+ {[%clk 0:01:17.1]} 23. Kd1
{[%clk 0:02:07.6]} 23... Nb2+ {[%clk 0:01:11.7]} 24. Ke1 {[%clk 0:02:07.4]}
24... Nd3+ {[%clk 0:01:02.7]} 25. Kd1 {[%clk 0:02:07.5]} 25... Nb2+ {[%clk
0:01:01.7]} 26. Ke1 {[%clk 0:02:07.7]} 1/2-1/2

[Event "Betsys MČR v online bleskovém šachu 2021"]
[Site "Chess.com"]
[Date "2021.04.17"]
[Round "13"]
[White "czechfant94"]
[Black "8_olda_8"]
[Result "0-1"]
[WhiteElo "1595"]
[BlackElo "1787"]
[TimeControl "180+1"]
[EndTime "11:07:58 PDT"]
[Termination "Uživatel 8_olda_8 zvítězil po vzdání soupeře"]

1. e4 {[%clk 0:03:00.9]} 1... e6 {[%clk 0:02:42.4]} 2. d4 {[%clk 0:03:00.5]}
2... c5 {[%clk 0:02:40.4]} 3. Nf3 {[%clk 0:02:57.4]} 3... cxd4 {[%clk 0:02:38]}
4. Nxd4 {[%clk 0:02:57.5]} 4... a6 {[%clk 0:02:38.4]} 5. Be3 {[%clk 0:02:57.7]}
5... Qc7 {[%clk 0:02:36.5]} 6. Nc3 {[%clk 0:02:57.5]} 6... b5 {[%clk 0:02:36.6]}
7. a3 {[%clk 0:02:55.3]} 7... Bb7 {[%clk 0:02:37.1]} 8. f3 {[%clk 0:02:54.7]}
8... Nf6 {[%clk 0:02:37.6]} 9. Be2 {[%clk 0:02:54.7]} 9... Nc6 {[%clk
0:02:38.2]} 10. O-O {[%clk 0:02:53.1]} 10... h5 {[%clk 0:02:38.2]} 11. Nxc6
{[%clk 0:02:52.6]} 11... Bxc6 {[%clk 0:02:37.2]} 12. Bg5 {[%clk 0:02:51.8]}
12... h4 {[%clk 0:02:36]} 13. h3 {[%clk 0:02:49.9]} 13... Be7 {[%clk 0:02:32.8]}
14. Bxf6 {[%clk 0:02:49.6]} 14... Bxf6 {[%clk 0:02:33.7]} 15. Rb1 {[%clk
0:02:49.1]} 15... Be5 {[%clk 0:02:16.1]} 16. Na2 {[%clk 0:02:43.7]} 16... Qb6+
{[%clk 0:02:10.9]} 17. Kh1 {[%clk 0:02:42.9]} 17... Qe3 {[%clk 0:02:10.9]} 18.
Qd3 {[%clk 0:02:41.1]} 18... Qf4 {[%clk 0:02:10.7]} 19. Kg1 {[%clk 0:02:34.3]}
19... Qh2+ {[%clk 0:02:06.4]} 20. Kf2 {[%clk 0:02:34.6]} 20... Qg3+ {[%clk
0:02:05.9]} 21. Kg1 {[%clk 0:02:32.5]} 21... Qh2+ {[%clk 0:02:06.1]} 22. Kf2
{[%clk 0:02:32.8]} 22... Bg3+ {[%clk 0:02:05.7]} 23. Ke3 {[%clk 0:02:28.6]}
23... Qxg2 {[%clk 0:01:58.1]} 24. Nb4 {[%clk 0:02:09.6]} 24... Bc7 {[%clk
0:01:38.3]} 25. Nxc6 {[%clk 0:02:00.6]} 25... dxc6 {[%clk 0:01:36.5]} 26. Rbd1
{[%clk 0:01:56.6]} 26... Bb6+ {[%clk 0:01:29]} 27. Kd2 {[%clk 0:01:56.3]} 27...
Rd8 {[%clk 0:01:28.7]} 28. Qxd8+ {[%clk 0:01:48.7]} 28... Bxd8 {[%clk
0:01:28.3]} 29. Kc3 {[%clk 0:01:48.3]} 29... Qxe2 {[%clk 0:01:27.5]} 0-1

[Event "Betsys MČR v online bleskovém šachu 2021"]
[Site "Chess.com"]
[Date "2021.04.17"]
[Round "13"]
[White "Loveforever_Pepi"]
[Black "Gicko13"]
[Result "1-0"]
[WhiteElo "2285"]
[BlackElo "2152"]
[TimeControl "180+1"]
[EndTime "11:08:03 PDT"]
[Termination "Uživatel Loveforever_Pepi zvítězil matem"]

1. e4 {[%clk 0:03:00.9]} 1... c5 {[%clk 0:02:59.8]} 2. d4 {[%clk 0:02:59.5]}
2... cxd4 {[%clk 0:02:59.3]} 3. c3 {[%clk 0:02:59.7]} 3... dxc3 {[%clk
0:02:59.7]} 4. Nxc3 {[%clk 0:02:59.2]} 4... Nc6 {[%clk 0:03:00.3]} 5. Bc4 {[%clk
0:02:58.3]} 5... e6 {[%clk 0:03:00.4]} 6. Nf3 {[%clk 0:02:57.5]} 6... Qc7 {[%clk
0:03:01.1]} 7. O-O {[%clk 0:02:53.6]} 7... Nf6 {[%clk 0:03:01]} 8. Nb5 {[%clk
0:02:32.6]} 8... Qb8 {[%clk 0:02:59.7]} 9. e5 {[%clk 0:02:32.5]} 9... Nxe5
{[%clk 0:02:26.6]} 10. Nxe5 {[%clk 0:02:31.3]} 10... Qxe5 {[%clk 0:02:25.1]} 11.
Re1 {[%clk 0:02:30.9]} 11... Qb8 {[%clk 0:02:21.3]} 12. Qd4 {[%clk 0:02:28.9]}
12... d6 {[%clk 0:01:51.8]} 13. Bf4 {[%clk 0:02:26.9]} 13... e5 {[%clk
0:01:44.2]} 14. Rxe5+ {[%clk 0:02:25.8]} 14... Be6 {[%clk 0:01:20.1]} 15. Bxe6
{[%clk 0:02:11.3]} 15... dxe5 {[%clk 0:01:09.2]} 16. Bxe5 {[%clk 0:01:59.9]}
16... Qd8 {[%clk 0:01:08.6]} 17. Nc7+ {[%clk 0:01:55.4]} 17... Ke7 {[%clk
0:01:05.5]} 18. Qc5+ {[%clk 0:01:49]} 18... Qd6 {[%clk 0:00:58.8]} 19. Qxd6#
{[%clk 0:01:45.8]} 1-0

[Event "Betsys MČR v online bleskovém šachu 2021"]
[Site "Chess.com"]
[Date "2021.04.17"]
[Round "13"]
[White "tondapesek"]
[Black "TomSedmihradsky"]
[Result "1/2-1/2"]
[WhiteElo "1163"]
[BlackElo "1386"]
[TimeControl "180+1"]
[EndTime "11:08:07 PDT"]
[Termination "Remíza dohodou"]

1. d4 {[%clk 0:03:00.9]} 1... d5 {[%clk 0:02:59.8]} 2. c4 {[%clk 0:02:56.7]}
2... e6 {[%clk 0:02:59.7]} 3. Nc3 {[%clk 0:02:55.9]} 3... Nf6 {[%clk 0:03:00]}
4. Bg5 {[%clk 0:02:55.6]} 4... Nbd7 {[%clk 0:03:00.2]} 5. e3 {[%clk 0:02:54.5]}
5... c6 {[%clk 0:03:00.2]} 6. Nf3 {[%clk 0:02:54.2]} 6... Bd6 {[%clk 0:02:58.4]}
7. Be2 {[%clk 0:02:53.8]} 7... h6 {[%clk 0:02:57.3]} 8. Bxf6 {[%clk 0:02:53.6]}
8... Nxf6 {[%clk 0:02:56.7]} 9. c5 {[%clk 0:02:53.4]} 9... Bc7 {[%clk
0:02:56.3]} 10. O-O {[%clk 0:02:50.6]} 10... Ne4 {[%clk 0:02:53.1]} 11. Nxe4
{[%clk 0:02:49.4]} 11... dxe4 {[%clk 0:02:52.7]} 12. Nd2 {[%clk 0:02:49]} 12...
f5 {[%clk 0:02:52]} 13. Nc4 {[%clk 0:02:47.6]} 13... Qh4 {[%clk 0:02:42.7]} 14.
g3 {[%clk 0:02:45.3]} 14... Qg5 {[%clk 0:02:28.3]} 15. Ne5 {[%clk 0:02:25.9]}
15... O-O {[%clk 0:02:01.8]} 16. Bc4 {[%clk 0:02:12.4]} 16... Bxe5 {[%clk
0:01:57.8]} 17. dxe5 {[%clk 0:02:12.5]} 17... Rd8 {[%clk 0:01:57.5]} 18. Qb3
{[%clk 0:02:09.7]} 18... Kf7 {[%clk 0:01:53.2]} 19. Rad1 {[%clk 0:02:08.1]}
19... Rxd1 {[%clk 0:01:35.5]} 20. Rxd1 {[%clk 0:02:07.3]} 20... Qg4 {[%clk
0:01:30]} 21. Rd6 {[%clk 0:02:03.3]} 21... Qg6 {[%clk 0:01:25.9]} 22. Kg2 {[%clk
0:01:49.2]} 22... h5 {[%clk 0:01:09.1]} 1/2-1/2

[Event "Betsys MČR v online bleskovém šachu 2021"]
[Site "Chess.com"]
[Date "2021.04.17"]
[Round "13"]
[White "JIDEMONI"]
[Black "SanyH"]
[Result "1-0"]
[WhiteElo "1884"]
[BlackElo "1614"]
[TimeControl "180+1"]
[EndTime "11:08:11 PDT"]
[Termination "Uživatel JIDEMONI zvítězil matem"]

1. d4 {[%clk 0:03:00.9]} 1... d5 {[%clk 0:02:59.7]} 2. Nf3 {[%clk 0:03:00.9]}
2... c6 {[%clk 0:02:59.9]} 3. e3 {[%clk 0:03:01.2]} 3... Nf6 {[%clk 0:03:00.1]}
4. Bd3 {[%clk 0:03:01.1]} 4... e6 {[%clk 0:02:58.5]} 5. O-O {[%clk 0:02:58.8]}
5... Be7 {[%clk 0:02:58]} 6. b3 {[%clk 0:02:59]} 6... O-O {[%clk 0:02:57.9]} 7.
Bb2 {[%clk 0:02:59.4]} 7... b5 {[%clk 0:02:55.3]} 8. Ne5 {[%clk 0:02:58.4]} 8...
Nbd7 {[%clk 0:02:54.4]} 9. f4 {[%clk 0:02:58.5]} 9... Bb7 {[%clk 0:02:53.3]} 10.
Nd2 {[%clk 0:02:57.2]} 10... a6 {[%clk 0:02:49.2]} 11. Rf3 {[%clk 0:02:55.4]}
11... c5 {[%clk 0:02:47.4]} 12. c4 {[%clk 0:02:46.7]} 12... bxc4 {[%clk
0:02:42.4]} 13. bxc4 {[%clk 0:02:46.3]} 13... dxc4 {[%clk 0:02:30.8]} 14. Ndxc4
{[%clk 0:02:43.8]} 14... cxd4 {[%clk 0:02:29.5]} 15. Rh3 {[%clk 0:02:40.8]}
15... dxe3 {[%clk 0:02:21.6]} 16. Nxe3 {[%clk 0:02:38.9]} 16... Bc5 {[%clk
0:02:15.5]} 17. Kh1 {[%clk 0:02:24.7]} 17... h6 {[%clk 0:02:13.9]} 18. Rc1
{[%clk 0:02:16.4]} 18... Qb6 {[%clk 0:02:11.5]} 19. Qe2 {[%clk 0:02:00.2]} 19...
Rab8 {[%clk 0:01:45.9]} 20. N3c4 {[%clk 0:01:50.9]} 20... Qc7 {[%clk 0:01:40.8]}
21. Nxd7 {[%clk 0:01:30.7]} 21... Qxd7 {[%clk 0:01:38.8]} 22. Bxf6 {[%clk
0:01:26.9]} 22... gxf6 {[%clk 0:01:31.1]} 23. Qg4+ {[%clk 0:01:22.5]} 23... Kh8
{[%clk 0:01:26.7]} 24. Rxh6# {[%clk 0:01:21.1]} 1-0

[Event "Betsys MČR v online bleskovém šachu 2021"]
[Site "Chess.com"]
[Date "2021.04.17"]
[Round "13"]
[White "JanBaraCZE"]
[Black "maelic"]
[Result "0-1"]
[WhiteElo "1586"]
[BlackElo "1760"]
[TimeControl "180+1"]
[EndTime "11:08:12 PDT"]
[Termination "Uživatel maelic zvítězil po vzdání soupeře"]

1. d4 {[%clk 0:03:00.9]} 1... Nf6 {[%clk 0:03:00.1]} 2. c4 {[%clk 0:03:01.8]}
2... g6 {[%clk 0:02:55.4]} 3. Nc3 {[%clk 0:03:02.7]} 3... Bg7 {[%clk 0:02:55.4]}
4. Nf3 {[%clk 0:03:03.1]} 4... d6 {[%clk 0:02:55.7]} 5. g3 {[%clk 0:03:03]} 5...
O-O {[%clk 0:02:55.7]} 6. Bg2 {[%clk 0:03:02.5]} 6... Nc6 {[%clk 0:02:54.9]} 7.
O-O {[%clk 0:03:02.3]} 7... e5 {[%clk 0:02:55.2]} 8. Bg5 {[%clk 0:03:00.7]} 8...
h6 {[%clk 0:02:55]} 9. dxe5 {[%clk 0:02:58.9]} 9... Nxe5 {[%clk 0:02:47.8]} 10.
Bxf6 {[%clk 0:02:58]} 10... Bxf6 {[%clk 0:02:44.2]} 11. Nxe5 {[%clk 0:02:58.2]}
11... dxe5 {[%clk 0:02:45.1]} 12. Qxd8 {[%clk 0:02:57.4]} 12... Rxd8 {[%clk
0:02:46]} 13. Rad1 {[%clk 0:02:57.7]} 13... Rxd1 {[%clk 0:02:42.5]} 14. Rxd1
{[%clk 0:02:58]} 14... c6 {[%clk 0:02:40.4]} 15. Ne4 {[%clk 0:02:58.1]} 15...
Be7 {[%clk 0:02:37.9]} 16. Nd6 {[%clk 0:02:57.7]} 16... Bxd6 {[%clk 0:02:27.8]}
17. Rxd6 {[%clk 0:02:56.7]} 17... Be6 {[%clk 0:02:27.9]} 18. b3 {[%clk
0:02:54.2]} 18... Kf8 {[%clk 0:02:28]} 19. f4 {[%clk 0:02:48.6]} 19... exf4
{[%clk 0:02:23.5]} 20. gxf4 {[%clk 0:02:47.9]} 20... Ke7 {[%clk 0:02:23.9]} 21.
Rd1 {[%clk 0:02:46.5]} 21... f5 {[%clk 0:02:15.1]} 22. e4 {[%clk 0:02:44.5]}
22... Rd8 {[%clk 0:02:03.9]} 23. Rxd8 {[%clk 0:02:43.3]} 23... Kxd8 {[%clk
0:02:04.8]} 24. exf5 {[%clk 0:02:42.8]} 24... Bxf5 {[%clk 0:02:02.1]} 25. Kf2
{[%clk 0:02:37.5]} 25... Bb1 {[%clk 0:02:02.2]} 26. a3 {[%clk 0:02:37.2]} 26...
Ba2 {[%clk 0:02:02.4]} 27. b4 {[%clk 0:02:36.9]} 27... Bxc4 {[%clk 0:02:02.7]}
28. Ke3 {[%clk 0:02:36.9]} 28... Ke7 {[%clk 0:02:00.1]} 29. Kd4 {[%clk
0:02:27.3]} 29... Be6 {[%clk 0:01:53.1]} 30. Be4 {[%clk 0:02:26.6]} 30... g5
{[%clk 0:01:50]} 31. fxg5 {[%clk 0:02:25.7]} 31... hxg5 {[%clk 0:01:50.9]} 32.
b5 {[%clk 0:02:22.7]} 32... Kd6 {[%clk 0:01:45.3]} 33. bxc6 {[%clk 0:02:21.9]}
33... bxc6 {[%clk 0:01:46.2]} 34. a4 {[%clk 0:02:08.5]} 34... c5+ {[%clk
0:01:45.2]} 35. Kc3 {[%clk 0:02:05.7]} 35... a5 {[%clk 0:01:43.4]} 36. Bc2
{[%clk 0:01:59.1]} 36... Ke5 {[%clk 0:01:40.6]} 37. Kd3 {[%clk 0:01:59.1]} 37...
Bf5+ {[%clk 0:01:40.3]} 38. Kd2 {[%clk 0:01:58]} 38... Bxc2 {[%clk 0:01:40.1]}
39. Kxc2 {[%clk 0:01:58.9]} 39... Kd4 {[%clk 0:01:40]} 40. Kd2 {[%clk
0:01:58.9]} 40... Kc4 {[%clk 0:01:38.5]} 41. Kc2 {[%clk 0:01:59.8]} 41... g4
{[%clk 0:01:37.8]} 42. Kb2 {[%clk 0:02:00.7]} 0-1

[Event "Betsys MČR v online bleskovém šachu 2021"]
[Site "Chess.com"]
[Date "2021.04.17"]
[Round "13"]
[White "RousekJan"]
[Black "Qb1xh8"]
[Result "1/2-1/2"]
[WhiteElo "1821"]
[BlackElo "2021"]
[TimeControl "180+1"]
[EndTime "11:08:15 PDT"]
[Termination "Remíza opakováním pozice"]

1. d4 {[%clk 0:03:00.9]} 1... Nf6 {[%clk 0:02:59]} 2. c4 {[%clk 0:03:00.1]} 2...
e5 {[%clk 0:02:58.6]} 3. dxe5 {[%clk 0:02:57.9]} 3... Ng4 {[%clk 0:02:58.7]} 4.
Nf3 {[%clk 0:02:55.4]} 4... Nc6 {[%clk 0:02:59]} 5. Nc3 {[%clk 0:02:51.2]} 5...
Bb4 {[%clk 0:02:58.8]} 6. Bd2 {[%clk 0:02:47.2]} 6... Ngxe5 {[%clk 0:02:57.8]}
7. Nxe5 {[%clk 0:02:40.7]} 7... Nxe5 {[%clk 0:02:58.7]} 8. e3 {[%clk 0:02:40.4]}
8... O-O {[%clk 0:02:57.7]} 9. a3 {[%clk 0:02:40.4]} 9... Bxc3 {[%clk
0:02:57.4]} 10. Bxc3 {[%clk 0:02:41.3]} 10... Re8 {[%clk 0:02:57.8]} 11. Bxe5
{[%clk 0:02:38.6]} 11... Rxe5 {[%clk 0:02:57.3]} 12. g3 {[%clk 0:02:39.1]} 12...
d5 {[%clk 0:02:52.3]} 13. Bg2 {[%clk 0:02:35.3]} 13... Be6 {[%clk 0:02:52.2]}
14. cxd5 {[%clk 0:02:31.7]} 14... Bxd5 {[%clk 0:02:52.6]} 15. Bxd5 {[%clk
0:02:31]} 15... Rxd5 {[%clk 0:02:53.5]} 16. Qe2 {[%clk 0:02:29.8]} 16... Qd7
{[%clk 0:02:49.4]} 17. Rd1 {[%clk 0:02:15.4]} 17... Re8 {[%clk 0:02:48.9]} 18.
O-O {[%clk 0:02:08.4]} 18... Rd8 {[%clk 0:02:45.8]} 19. Rxd5 {[%clk 0:02:05.6]}
19... Qxd5 {[%clk 0:02:46.7]} 20. Rc1 {[%clk 0:02:03.9]} 20... c6 {[%clk
0:02:46.4]} 21. Qc4 {[%clk 0:01:58.5]} 21... Qxc4 {[%clk 0:02:27.8]} 22. Rxc4
{[%clk 0:01:59.4]} 22... Rd2 {[%clk 0:02:27.9]} 23. Rb4 {[%clk 0:01:56.4]} 23...
b5 {[%clk 0:02:27.9]} 24. Kf1 {[%clk 0:01:41]} 24... Kf8 {[%clk 0:02:27.5]} 25.
Ke1 {[%clk 0:01:39.5]} 25... Rc2 {[%clk 0:02:27.6]} 26. Rb3 {[%clk 0:01:33.2]}
26... Ke7 {[%clk 0:02:24.1]} 27. Rc3 {[%clk 0:01:27.7]} 27... Rxb2 {[%clk
0:02:23.3]} 28. Rxc6 {[%clk 0:01:27.3]} 28... Ra2 {[%clk 0:02:13.7]} 29. Ra6
{[%clk 0:01:25.7]} 29... b4 {[%clk 0:02:13.6]} 30. Rxa7+ {[%clk 0:01:18.1]}
30... Ke6 {[%clk 0:02:13.5]} 31. Ra6+ {[%clk 0:01:04.9]} 31... Ke7 {[%clk
0:02:06.7]} 32. Ra7+ {[%clk 0:01:04.9]} 32... Ke6 {[%clk 0:02:05.8]} 33. Ra6+
{[%clk 0:01:05.1]} 33... Ke7 {[%clk 0:02:05.8]} 34. Ra7+ {[%clk 0:01:02.8]}
1/2-1/2